Workbook

Sheet паспорт
A1: ПАТ "УКРТРАНСГАЗ" | G1: ПАСПОРТ ФІЗИКО-ХІМІЧНИХ ПОКАЗНИКІВ ПРИРОДНОГО ГАЗУ № 856
A2: Філія "УМГ "Черкаситрансгаз" | G2: переданого Кременчуцьким ЛВУМГ та прийнятого ПАТ "Полтавагаз"
A3: Кременчуцьке ЛВУМГ | G3: Маршрут № 856
A4: Вимірювальна хіміко-аналітична лабораторія
A5: Кременчуцького промислового майданчика
A6: Свідоцтво № 0612 КФ від 30.12.15р. чинне до 20.06.19р. | K6: по газопроводу "Диканька-Кременчук-Кривий Ріг" | V6: за період з | X6: 2017-02-01 | Z6: по | AA6: 2017-02-28
A8: Число місяця | B8: Компонентний склад, % мол. | N8: Фізико-хімічні показники газу обчислені на основі компонентного складу, 101,325 кПа | X8: Температура точки роси за вологою (Р = 3.92 МПа), °С | Y8: Температура точки роси за вуглеводнями, °С | Z8: Вміст сірководню, г/м3 | AA8: Вміст меркаптанової сірки, г/м3 | AB8: Вміст механічних домішок, г/м3
N9: Густина абсолютна, кг/м3,при 20 °С, | O9: Температура вимірювання/згоряння при 20/25°С
B10: метан, С1 | C10: етан, С2 | D10: пропан, С3 | E10: ізо-бутан, і-С4 | F10: н-бутан, н-С4 | G10: нео-пентан, нео-С5 | H10: ізо-пентан, і-С5 | I10: н-пентан, н-С5 | J10: гексани та вищі, С6+ | K10: кисень, О2 | L10: азот, N2 | M10: діоксид вуглецю, CО2 | O10: Теплота згоряння нижча | R10: Теплота згоряння вища | U10: Число Воббе вище
O11: ккал/м³ | P11: МДж/м³ | Q11: кВт⋅год/м³ | R11: ккал/м³ | S11: МДж/м³ | T11: кВт⋅год/м³ | U11: ккал/м³ | V11: МДж/м³ | W11: кВт⋅год/м³
A12: 1 | B12: 92.024 | C12: 4.028 | D12: 0.976 | E12: 0.114 | F12: 0.166 | G12: 0.004 | H12: 0.045 | I12: 0.037 | J12: 0.054 | K12: 0.001 | L12: 1.663 | M12: 0.888 | N12: 0,7305 | O12: =P12*238.8459 -> 8242.572009 | P12: 34.51 | Q12: =P12/3.6 -> 9.586111111 | R12: =S12*238.8459 -> 9133.467216 | S12: 38.24 | T12: =S12/3.6 -> 10.62222222 | U12: 11 729 | V12: 49,11 | W12: =V12/3.6 -> 13.64166667 | X12: -9,7 | AC12: =SUM(B12:M12)+$K$43+$N$43 -> 100
A13: 2 | O13: =P13*238.8459 -> 8242.572009 | P13: 34.51 | Q13: 9.586111111 | R13: =S13*238.8459 -> 9133.467216 | S13: 38.24 | T13: 10.62222222 | AC13: 0
A14: 3 | O14: 8242.572009 | P14: 34.51 | Q14: 9.586111111 | R14: 9133.467216 | S14: 38.24 | T14: 10.62222222 | AC14: 0 | AD14: =IF(AC14=100,"ОК"," ") -> 
A15: 4 | O15: 8242.572009 | P15: 34.51 | Q15: 9.586111111 | R15: 9133.467216 | S15: 38.24 | T15: 10.62222222 | AC15: 0 | AD15: =IF(AC15=100,"ОК"," ") -> 
A16: 5 | O16: 8242.572009 | P16: 34.51 | Q16: 9.586111111 | R16: 9133.467216 | S16: 38.24 | T16: 10.62222222 | AC16: 0
A17: 6 | O17: 8242.572009 | P17: 34.51 | Q17: 9.586111111 | R17: 9133.467216 | S17: 38.24 | T17: 10.62222222 | AC17: 0
A18: 7 | B18: 91.984 | C18: 4.063 | D18: 0.963 | E18: 0.113 | F18: 0.165 | G18: 0.004 | H18: 0.045 | I18: 0.037 | J18: 0.062 | K18: 0.001 | L18: 1.663 | M18: 0.9 | N18: 0,7385 | O18: 8244.960468 | P18: 34.52 | Q18: 9.588888889 | R18: 9135.855675 | S18: 38.25 | T18: 10.625 | U18: 11 728 | V18: 49,10 | W18: 13.63888889 | X18: -9,6 | AC18: 100 | AD18: ОК
A19: 8 | O19: 8244.960468 | P19: 34.52 | Q19: 9.588888889 | R19: 9135.855675 | S19: 38.25 | T19: 10.625 | AC19: 0
A20: 9 | O20: 8244.960468 | P20: 34.52 | Q20: 9.588888889 | R20: 9135.855675 | S20: 38.25 | T20: 10.625 | AC20: 0
A21: 10 | O21: 8244.960468 | P21: 34.52 | Q21: =P21/3.6 -> 9.588888889 | R21: 9135.855675 | S21: 38.25 | T21: =S21/3.6 -> 10.625 | AC21: 0
A22: 11 | O22: 8244.960468 | P22: 34.52 | Q22: 9.588888889 | R22: 9135.855675 | S22: 38.25 | T22: 10.625 | AC22: 0
A23: 12 | O23: 8244.960468 | P23: 34.52 | Q23: 9.588888889 | R23: 9135.855675 | S23: 38.25 | T23: 10.625 | AC23: 0
A24: 13 | O24: 8244.960468 | P24: 34.52 | Q24: 9.588888889 | R24: 9135.855675 | S24: 38.25 | T24: 10.625 | AC24: 0
A25: 14 | O25: 8244.960468 | P25: 34.52 | Q25: 9.588888889 | R25: 9135.855675 | S25: 38.25 | T25: 10.625 | AC25: 0
A26: 15 | B26: 91.5783 | C26: 4.2216 | D26: 0.9839 | E26: 0.1179 | F26: 0.1774 | G26: 0.0044 | H26: 0.0493 | I26: 0.0404 | J26: 0.0563 | K26: 0.0013 | L26: 1.8193 | M26: 0.9499 | N26: 0,7337 | O26: 8244.960468 | P26: 34.52 | Q26: 9.588888889 | R26: 9135.855675 | S26: 38.25 | T26: 10.625 | U26: 11 704 | V26: 49,00 | W26: 13.61111111 | X26: -10,0 | AC26: 100 | AD26: ОК
A27: 16 | O27: 8244.960468 | P27: 34.52 | Q27: =P27/3.6 -> 9.588888889 | R27: 9135.855675 | S27: 38.25 | T27: =S27/3.6 -> 10.625 | AC27: 0
A28: 17 | O28: 8244.960468 | P28: 34.52 | Q28: 9.588888889 | R28: 9135.855675 | S28: 38.25 | T28: 10.625 | AC28: 0
A29: 18 | O29: 8244.960468 | P29: 34.52 | Q29: 9.588888889 | R29: 9135.855675 | S29: 38.25 | T29: 10.625 | AC29: 0
A30: 19 | O30: 8244.960468 | P30: 34.52 | Q30: 9.588888889 | R30: 9135.855675 | S30: 38.25 | T30: 10.625 | AC30: 0
A31: 20 | O31: 8244.960468 | P31: 34.52 | Q31: 9.588888889 | R31: 9135.855675 | S31: 38.25 | T31: 10.625 | AC31: 0 | AD31: =IF(AC31=100,"ОК"," ") -> 
A32: 21 | B32: 91.3815 | C32: 4.2643 | D32: 1.04 | E32: 0.1162 | F32: 0.1764 | G32: 0.004 | H32: 0.049 | I32: 0.0408 | J32: 0.0624 | K32: 0.0014 | L32: 1.8702 | M32: 0.9938 | N32: 0,7355 | O32: 8247.348927 | P32: 34.53 | Q32: 9.591666667 | R32: 9138.244134 | S32: 38.26 | T32: 10.62777778 | U32: 11 694 | V32: 48,96 | W32: 13.6 | X32: -9,3 | Z32: 0,0030 | AA32: 0,0040 | AB32: відсутні | AC32: 100 | AD32: ОК
A33: 22 | O33: 8247.348927 | P33: 34.53 | Q33: 9.591666667 | R33: 9138.244134 | S33: 38.26 | T33: 10.62777778 | AC33: 0
A34: 23 | O34: 8247.348927 | P34: 34.53 | Q34: =P34/3.6 -> 9.591666667 | R34: 9138.244134 | S34: 38.26 | T34: =S34/3.6 -> 10.62777778 | AC34: 0 | AD34: =IF(AC34=100,"ОК"," ") -> 
A35: 24 | O35: 8247.348927 | P35: 34.53 | Q35: 9.591666667 | R35: 9138.244134 | S35: 38.26 | T35: 10.62777778 | AC35: 0
A36: 25 | O36: 8247.348927 | P36: 34.53 | Q36: 9.591666667 | R36: 9138.244134 | S36: 38.26 | T36: 10.62777778 | AC36: 0
A37: 26 | O37: 8247.348927 | P37: 34.53 | Q37: 9.591666667 | R37: 9138.244134 | S37: 38.26 | T37: =S37/3.6 -> 10.62777778 | AC37: 0
A38: 27 | O38: 8247.348927 | P38: 34.53 | Q38: 9.591666667 | R38: 9138.244134 | S38: 38.26 | T38: 10.62777778 | AC38: 0
A39: 28 | O39: 8247.348927 | P39: 34.53 | Q39: 9.591666667 | R39: 9138.244134 | S39: 38.26 | T39: 10.62777778 | AC39: 0
A43: Вміст одоранта при одоризації становить 16 г на 1 000 м³ газу | O43: =AVERAGEA(O12:O39) -> 8245.131072 | P43: 34.52071429 | Q43: 9.589087302 | R43: 9136.026279 | S43: 38.25071429 | T43: 10.62519841
H44: Середньозважене значення теплоти згоряння:
B46: Начальник управління Кременчуцького ЛВУМГ Кучерук В.М. | Z46: 02.03.2017 р.
C47: Підрозділу підприємства, якому підпорядкована лабораторія | M47: прізвище | V47: підпис | Z47: дата
B48: Начальник лабораторії ВХАЛ Кучерук Н.М. | Z48: 02.03.2017 р.
C49: Лабораторія, де здійснювалось вимірювання газу | M49: прізвище | V49: підпис | Z49: дата
B50: Провідний економіст із збуту Кривулькін І.В. | Z50: 02.03.2017 р.
C51: Підрозділу, відповідального за облік газу за маршрутом | M51: прізвище | V51: підпис | Z51: дата

Sheet додаток
A2: Додаток до Паспорту фізико-хімічних показників природного газу № 856
A4: Область | B4: ГРС, прямий споживач | C4: Cередньозважене значення вищої теплоти згоряння
C5: МДж/м³ | D5: ккал/м³ | E5: кВт*год./м³
A6: Полтавська область | B6: ГРС Полтава - 2 | C6: 38.25024454 | D6: 9135.914083 | E6: 10.62506793
B7: ГРС Стасі | C7: 38.25003324 | D7: 9135.863615 | E7: 10.62500923
B8: ГРС Бричківка | C8: 38.24996658 | D8: 9135.847692 | E8: 10.62499072
B9: ГРС Мачухи | C9: 38.24998264 | D9: 9135.851529 | E9: 10.62499518
B10: ГРС Нові Санжари | C10: 38.24948798 | D10: 9135.73338 | E10: 10.62485777
A11: Середньозважене значення вищої теплоти згоряння по маршруту № 856 | C11: 38.2501354 | D11: 9135.888014 | E11: 10.62503761
A15: Начальник управління Кременчуцького ЛВУМГ Кучерук В.Н. | F15: 02.03.2017 р.
A16: Підрозділу підприємства, якому підпорядкована лабораторія | D16: прізвище | E16: підпис | F16: дата
A17: Начальник лабораторії ВХАЛ Кучерук Н.М. | F17: 02.03.2017 р.
A18: Лабораторія, де здійснювалось вимірювання газу | D18: прізвище | E18: підпис | F18: дата
A19: Провідний економіст із збуту Кривулькін І.В. | F19: 02.03.2017 р.
A20: Підрозділу, відповідального за облік газу за маршрутом | D20: прізвище | E20: підпис | F20: дата

Sheet variablesList (hidden)
A1: 3 | B1: x:\gaysin | C1: 10, 11, 24, 25, 127, 128, 132, 180, 207, 215 | D1: x:\
B2: x:\Illinci
B3: x:\Talne
